fUSD/lending_fUSD_20241219
["ID","MTS","AMOUNT","RATE_DAILY","PERIOD"]
[346027517,1734635438995,-500.0,0.00024545,4]
[346027518,1734635439004,-500.0,0.00024545,4]
[346027519,1734635439013,-500.0,0.00024545,4]
[346027520,1734635439023,-500.0,0.00024545,4]
[346027521,1734635439032,-544.12,0.00024545,4]
[346027522,1734635439042,-217.0,0.0002462,2]
[346027523,1734635439051,-150.0,0.00024658,2]
[346027524,1734635439060,-200.0,0.000247,2]
[346027525,1734635439069,-1437.00913309,0.000247,2]
[346027526,1734635439079,-390.0,0.0002475,2]
[346027527,1734635439088,-500.0,0.00024818,4]
[346027528,1734635439098,-500.0,0.00024818,4]
[346027529,1734635439107,-249.97762689,0.00024818,4]
[346027530,1734635439116,-500.0,0.00024819,4]
[346027531,1734635439126,-207.39234074,0.00024819,4]
[346027532,1734635439135,-500.0,0.00024819,4]
[346027533,1734635439145,-500.0,0.00024819,4]
[346027534,1734635439154,-500.0,0.00024819,4]
[346027535,1734635439164,-500.0,0.00024819,4]
[346027536,1734635439173,-544.12,0.00024819,4]
[346027537,1734635439182,-520.99,0.000249,31]
[346027538,1734635439191,-520.99,0.000249,31]
[346027539,1734635439201,-520.99,0.000249,31]
[346027540,1734635439211,-520.99,0.000249,31]
[346027541,1734635439220,-520.99,0.000249,31]
[346027542,1734635439230,-520.99,0.000249,31]
[346027543,1734635439242,-520.99,0.000249,31]
[346027544,1734635439251,-520.99,0.000249,31]
[346027545,1734635439261,-520.99,0.000249,31]
[346027546,1734635439270,-520.99,0.000249,31]
[346027547,1734635439279,-520.99,0.000249,31]
[346027548,1734635439289,-520.99,0.000249,31]
[346027549,1734635439299,-520.99,0.000249,31]
[346027550,1734635439308,-520.99,0.000249,31]
[346027551,1734635439318,-520.99,0.000249,31]
[346027552,1734635439327,-520.99,0.000249,31]
[346027553,1734635439336,-5000.0,0.000249,2]
[346027554,1734635439346,-159.2394593,0.000249,2]
[346027555,1734635439355,-13844.68904087,0.000249,2]
[346027556,1734635439364,-1004.67194151,0.000249,2]
[346027557,1734635439374,-210.12461969,0.000249,2]
[346027558,1734635439383,-500.0,0.00024973,2]
[346027559,1734635439393,-163.2,0.00024975,2]
[346027560,1734635439403,-1855.4603,0.00024986,2]
[346027561,1734635439414,-163.49,0.0002499,2]
[346027562,1734635439424,-163.49,0.0002499,2]
[346027563,1734635439434,-163.49,0.0002499,2]
[346027564,1734635439443,-163.49,0.0002499,2]
[346027565,1734635439454,-163.49,0.0002499,2]
[346027566,1734635439464,-163.49,0.0002499,2]
[346027567,1734635439475,-163.49,0.0002499,2]
[346027568,1734635439486,-11817.16494365,0.00024998,3]
[346027569,1734635439505,-500.0,0.00024999,4]
[346027570,1734635439516,-500.0,0.00024999,4]
[346027571,1734635439526,-500.0,0.00024999,4]
[346027572,1734635439537,-500.0,0.00024999,2]
[346027573,1734635439547,-516.41944704,0.00024999,4]
[346027574,1734635439559,-500.0,0.00024999,4]
[346027575,1734635439572,-500.0,0.00024999,4]
[346027576,1734635439582,-500.0,0.00024999,4]
[346027577,1734635439592,-386.75,0.00024999,4]
[346027578,1734635439602,-456.20776584,0.00024999,4]
[346027579,1734635439614,-622.81,0.00024999,4]
[346027580,1734635439625,-500.0,0.00024999,4]
[346027581,1734635439636,-500.0,0.00024999,4]
[346027582,1734635439647,-500.0,0.00024999,4]
[346027583,1734635439657,-500.0,0.00024999,4]
[346027584,1734635439667,-348.7039577,0.00024999,4]
[346027585,1734635439680,-151.2960423,0.00024999,4]
[346027586,1734635439690,-500.0,0.00024999,4]
[346027587,1734635439700,-500.0,0.00024999,4]
[346027588,1734635439710,-330.5809577,0.00024999,4]
[346027589,1734635439745,-169.4190423,0.00024999,4]
[346027590,1734635439755,-500.0,0.00024999,4]
[346027591,1734635439764,-500.0,0.00024999,4]
[346027592,1734635439773,-500.0,0.00024999,4]
[346027593,1734635439783,-594.89,0.00024999,4]
[346027594,1734635439792,-500.0,0.00024999,4]
[346027595,1734635439801,-202.4079477,0.00024999,4]
[346027596,1734635439814,-297.5920523,0.00024999,4]
[346027597,1734635439823,-359.12342998,0.00024999,4]
[346027599,1734635440249,-140.87657002,0.00024999,4]
[346027601,1734635440260,-500.0,0.00024999,4]
[346027603,1734635440270,-500.0,0.00024999,4]
[346027605,1734635440280,-500.0,0.00024999,4]
[346027606,1734635440289,-500.0,0.00024999,4]
[346027607,1734635440299,-393.33031185,0.00024999,4]
[346027608,1734635440308,-500.0,0.00024999,4]
[346027609,1734635440318,-500.0,0.00024999,4]
[346027610,1734635440328,-500.0,0.00024999,4]
[346027611,1734635440337,-556.94620208,0.00024999,4]
[346027612,1734635440346,-500.0,0.00024999,4]
[346027613,1734635440356,-500.0,0.00024999,4]
[346027614,1734635440365,-589.81,0.00024999,4]
[346027615,1734635440375,-1163.43,0.00024999,4]
[346027616,1734635440385,-500.0,0.00024999,4]
[346027617,1734635440395,-500.0,0.00024999,4]
[346027618,1734635440404,-500.0,0.00024999,4]
[346027619,1734635440414,-500.0,0.00024999,4]
[346027620,1734635440424,-500.0,0.00024999,4]
[346027621,1734635440433,-465.88894249,0.00024999,4]
[346027622,1734635440446,-34.11105751,0.00024999,4]
[346027623,1734635440456,-500.0,0.00024999,4]
[346027624,1734635440466,-326.25766269,0.00024999,4]
[346027625,1734635440475,-500.0,0.00024999,4]
[346027626,1734635440485,-1557.64,0.00024999,4]
[346027627,1734635440496,-500.0,0.00024999,2]
[346027628,1734635440506,-500.0,0.00024999,4]
[346027629,1734635440515,-249.03729291,0.00024999,4]
[346027630,1734635440525,-500.0,0.00024999,4]
[346027631,1734635440535,-500.0,0.00024999,4]
[346027632,1734635440544,-500.0,0.00024999,4]
[346027633,1734635440557,-1039.3,0.00024999,4]
[346027634,1734635440566,-786.88,0.00024999,4]
[346027635,1734635440577,-362.30178417,0.00024999,4]
[346027636,1734635440708,-137.69821583,0.00024999,4]
[346027637,1734635440718,-882.22,0.00024999,4]
[346027638,1734635440727,-500.0,0.00024999,4]
[346027639,1734635440738,-586.97319169,0.00024999,4]
[346027640,1734635440748,-463.17443931,0.00024999,4]
[346027641,1734635440757,-500.0,0.00024999,4]
[346027642,1734635440766,-548.48913679,0.00024999,4]
[346027643,1734635440776,-500.0,0.00024999,4]
[346027645,1734635440786,-500.0,0.00024999,4]
[346027647,1734635440795,-500.0,0.00024999,4]
[346027649,1734635440804,-535.45675749,0.00024999,4]
[346027651,1734635440813,-500.0,0.00024999,4]
[346027653,1734635440822,-500.0,0.00024999,4]
[346027654,1734635440832,-500.0,0.00024999,4]
[346027656,1734635440841,-500.0,0.00024999,4]
[346027658,1734635440850,-513.67,0.00024999,4]
[346027660,1734635440860,-373.91,0.00024999,4]
[346027662,1734635440869,-500.0,0.00024999,4]
[346027664,1734635440878,-500.0,0.00024999,4]
[346027666,1734635440888,-887.0,0.00025,2]
[346027668,1734635440897,-20422.04033099,0.00025,3]
[346027671,1734635440912,-821.3856335,0.00025,3]
[346027673,1734635440923,-21876.76699358,0.00025,3]
[346027675,1734635440935,-7814.69846639,0.00025,3]
[346027677,1734635440945,-15489.4928798,0.00025,3]
[346027679,1734635440956,-3098.65587585,0.00025,3]
[346027682,1734635440967,-2471.415,0.00025,3]
[346027684,1734635440978,-351.33499512,0.00025,3]
[346027686,1734635440993,-1172.81104432,0.00025,3]
[346027687,1734635441004,-959.85,0.00025,3]
[346027701,1734635443295,-500.0,0.00024999,4]
[346027703,1734635443306,-500.0,0.00024999,4]
[346027705,1734635443316,-78.45067414,0.00024999,4]
[346027707,1734635443421,-426.02013076,0.00024999,4]
[346027708,1734635443430,-76.97529394,0.00025,3]
[346027709,1734635443585,-16352.51874469,0.00025,3]
[346027710,1734635443594,-2305.89417009,0.00025,3]
[346027711,1734635443605,-247.70150111,0.00025,2]
[346027712,1734635443615,-500.0,0.00025,120]
[346027713,1734635443624,-79678.76433336,0.00025,2]
[346027714,1734635443635,-485.305,0.00025,2]
[346027715,1734635443649,-585.00220768,0.00025,2]
[346027716,1734635443660,-13801.62097263,0.00025,2]
[346027717,1734635443671,-160508.09038361,0.00025,2]
[346027718,1734635443715,-493.62468248,0.00025,2]
[346027719,1734635446206,-500.0,0.00024999,4]
[346027720,1734635446217,-500.0,0.00024999,4]
[346027721,1734635446227,-1149.357475,0.00025,2]
[346027722,1734635446238,-16467.78586006,0.00025,2]
[346027723,1734635446475,-5912.8862,0.00025,2]
[346027724,1734635446486,-500.0,0.00025,2]
[346027725,1734635446572,-492.405,0.00025,2]
[346027726,1734635446584,-24732.329818,0.00025,2]
[346027764,1734635977870,178.34,0.00010137,2]
[346027767,1734636238149,10000.0,0.00018023,2]
[346027768,1734636249454,10000.0,0.00018023,2]
[346027769,1734636268030,10000.0,0.00018023,2]
[346027811,1734636632452,-300.0,0.00019979,2]
[346027812,1734636632462,-2215.94290178,0.0001998,2]
[346027813,1734636632525,-569.71214649,0.0001998,2]
[346027814,1734636632536,-16270.85621137,0.0001998,2]
[346027815,1734636632546,-500.0,0.00021164,2]
[346027816,1734636632555,-500.0,0.00021164,2]
[346027817,1734636632564,-540.75,0.00021625,2]
[346027818,1734636632574,-420.0,0.00021755,2]
[346027819,1734636632583,-169.0,0.00022,2]
[346027820,1734636632592,-150.0,0.00022488,4]
[346027821,1734636632603,-150.0,0.00022488,4]
[346027822,1734636632612,-150.0,0.00022488,4]
[346027823,1734636632622,-150.0,0.00022488,4]
[346027824,1734636632630,-150.0,0.00022488,4]
[346027825,1734636632640,-150.0,0.00022553,4]
[346027826,1734636632649,-50.99778863,0.00022606,2]
[346027827,1734636632660,-112.20221137,0.00022606,2]
[346027828,1734636632670,-792.68,0.00022616,2]
[346027829,1734636632683,-150.0,0.00022619,4]
[346027830,1734636632692,-200.0,0.00022676,2]
[346027831,1734636632701,-150.0,0.00022685,4]
[346027832,1734636632711,-150.0,0.00022696,4]
[346027833,1734636632720,-844.91778863,0.00022704,2]
[346027834,1734636632732,-155.08221137,0.00022704,2]
[346027835,1734636632741,-150.0,0.00022751,4]
[346027836,1734636632751,-1000.0,0.00022791,2]
[346027837,1734636632760,-150.0,0.00022816,4]
[346027838,1734636632770,-150.0,0.00022882,4]
[346027839,1734636632779,-150.0,0.00022904,4]
[346027840,1734636632788,-150.0,0.00022948,4]
[346027841,1734636632797,-3950.35191766,0.00023,2]
[346027842,1734636632807,-150.0,0.00023014,4]
[346027843,1734636632816,-150.0,0.00023079,4]
[346027844,1734636632825,-250.0,0.00023111,2]
[346027845,1734636632835,-150.0,0.00023112,4]
[346027846,1734636632844,-150.0,0.00023145,4]
[346027847,1734636632854,-250.0,0.00023148,2]
[346027848,1734636632864,-150.0,0.00023211,4]
[346027849,1734636632873,-148.71764197,0.00023277,4]
[346027850,1734636632884,-1.28235803,0.00023277,4]
[346027851,1734636632893,-250.0,0.00023277,2]
[346027852,1734636632903,-200.0,0.00023277,2]
[346027853,1734636632912,-250.0,0.00023284,2]
[346027854,1734636632922,-370.7072434,0.00023298,2]
[346027855,1734636632938,-205.1427566,0.00023298,2]
[346027856,1734636632947,-150.0,0.00023321,4]
[346027857,1734636632955,-150.0,0.00023321,4]
[346027858,1734636632966,-31.0972434,0.00023342,4]
[346027859,1734636632984,-118.9027566,0.00023342,4]
[346027860,1734636632993,-168.88,0.00023401,2]
[346027861,1734636633004,-150.0,0.00023408,4]
[346027862,1734636633013,-500.0,0.00023415,7]
[346027863,1734636633023,-150.0,0.00023474,4]
[346027864,1734636633032,-154.41,0.00023491,2]
[346027865,1734636633041,-161.73,0.00023491,2]
[346027866,1734636633050,-171.09,0.00023496,30]
[346027868,1734636633060,-154.41,0.00023502,2]
[346027869,1734636633070,-201.43,0.00023512,2]
[346027870,1734636633079,-154.41,0.00023513,2]
[346027871,1734636633088,-154.41,0.00023523,2]
[346027872,1734636633098,-150.0,0.00023529,4]
[346027873,1734636633108,-1500.0,0.0002353,2]
[346027874,1734636633117,-154.41,0.00023534,2]
[346027875,1734636633127,-150.0,0.0002354,4]
[346027876,1734636633309,-154.41,0.00023545,2]
[346027877,1734636633319,-154.41,0.00023555,2]
[346027878,1734636633330,-154.41,0.00023566,2]
[346027879,1734636633339,-154.41,0.00023577,2]
[346027880,1734636633348,-154.41,0.00023587,2]
[346027881,1734636633358,-154.41,0.00023598,2]
[346027882,1734636633367,-150.0,0.00023605,4]
[346027883,1734636633377,-12311.95724335,0.00023608,2]
[346027884,1734636633389,-586.99659,0.00023608,2]
[346027887,1734636638499,-151.61663114,0.00021064,2]
[346027888,1734636638509,-1513.52352191,0.00023608,2]
[346027889,1734636638521,-1860.04352126,0.00023608,2]
[346027890,1734636638532,-268.65873801,0.00023608,2]
[346027891,1734636638547,-7001.72038547,0.00023608,2]
[346027892,1734636638556,-1857.958,0.00023608,4]
[346027893,1734636638565,-175.378,0.00023608,4]
[346027894,1734636638575,-154.41,0.00023609,2]
[346027895,1734636638584,-2000.0,0.00023644,2]
[346027896,1734636638593,-150.0,0.00023671,4]
[346027897,1734636638602,-500.0,0.00023689,7]
[346027898,1734636638611,-587.0,0.0002369,2]
[346027899,1734636638620,-152.0,0.00023694,3]
[346027900,1734636638629,-973.3,0.00023699,2]
[346027901,1734636638639,-150.0,0.00023737,4]
[346027902,1734636638648,-150.0,0.00023737,4]
[346027903,1734636638657,-150.0,0.00023737,4]
[346027904,1734636638666,-418.742,0.0002375,2]
[346027905,1734636638675,-150.0,0.00023803,4]
[346027906,1734636638687,-150.0,0.00023868,4]
[346027907,1734636638696,-540.75,0.00023889,2]
[346027908,1734636638705,-153.22,0.00023897,2]
[346027909,1734636638716,-500.0,0.000239,8]
[346027910,1734636638725,-150.0,0.00023934,4]
[346027911,1734636638734,-150.0,0.00023945,4]
[346027912,1734636638743,-500.0,0.00023962,7]
[346027913,1734636638752,-150.0,0.00024,4]
[346027914,1734636638761,-270.11164,0.00024,30]
[346027915,1734636638770,-1949.38702178,0.00024,10]
[346027916,1734636638782,-550.61297822,0.00024,10]
[346027917,1734636638792,-8420.4737363,0.00024,2]
[346027918,1734636638801,-24605.67761663,0.00024,3]
[346027919,1734636638810,-1000.0,0.00024,8]
[346027920,1734636638819,-206.07,0.00024029,2]
[346027921,1734636638829,-150.0,0.00024066,4]
[346027922,1734636638840,-571.84,0.000241,2]
[346027923,1734636638850,-1500.0,0.000241,8]
[346027925,1734636638859,-150.0,0.00024132,4]
[346027927,1734636638868,-150.0,0.00024153,4]
[346027929,1734636638877,-150.0,0.00024153,4]
[346027931,1734636638886,-150.0,0.00024197,4]
[346027933,1734636638895,-11551.49999989,0.000242,2]
[346027935,1734636638904,-2000.0,0.000242,8]
[346027937,1734636638913,-500.0,0.00024235,7]
[346027939,1734636638922,-150.0,0.00024263,4]
[346027941,1734636638933,-2500.0,0.000243,8]
[346027943,1734636638943,-150.0,0.00024329,4]
[346027945,1734636638952,-150.0,0.00024362,4]
[346027947,1734636638961,-150.0,0.00024395,4]
[346027949,1734636638972,-500.0,0.000244,8]
[346027951,1734636638981,-150.0,0.0002446,4]
[346027953,1734636638990,-1742.0,0.000245,3]
[346027954,1734636638999,-500.0,0.000245,8]
[346027956,1734636639009,-18247.3377319,0.000245,2]
[346027959,1734636639020,-6043.24377106,0.000245,2]
[346027961,1734636639029,-500.0,0.00024508,7]
[346027963,1734636639039,-151.6,0.00024521,2]
[346027965,1734636639048,-976.54,0.00024521,2]
[346027967,1734636639057,-436.03,0.00024521,2]
[346027968,1734636639067,-150.0,0.00024521,2]
[346027970,1734636639076,-150.0,0.00024521,2]
[346027972,1734636639085,-364.93,0.00024521,2]
[346027974,1734636639095,-436.03,0.00024521,2]
[346027976,1734636639104,-150.0,0.00024521,2]
[346027978,1734636639113,-976.54,0.00024521,2]
[346027980,1734636639122,-364.93,0.00024521,2]
[346027982,1734636639132,-150.0,0.00024521,2]
[346027984,1734636639141,-436.03,0.00024521,2]
[346027986,1734636639150,-364.93,0.00024521,2]
[346027987,1734636639160,-150.0,0.00024521,2]
[346027988,1734636639169,-361.59,0.00024521,2]
[346027989,1734636639179,-150.0,0.00024521,2]
[346027990,1734636639189,-150.0,0.00024521,2]
[346027991,1734636639199,-150.0,0.00024526,4]
[346027992,1734636639207,-150.0,0.0002457,4]
[346027993,1734636639217,-150.0,0.00024592,4]
[346027994,1734636639226,-500.0,0.000246,8]
[346027995,1734636639235,-150.0,0.00024658,4]
[346027996,1734636639245,-150.0,0.00024658,2]
[346027997,1734636639254,-200.0,0.000247,2]
[346027998,1734636639263,-218.89629133,0.000247,2]
[346027999,1734636639273,-500.0,0.000247,9]
[346028000,1734636639282,-151.0,0.00024716,2]
[346028001,1734636639291,-3884.0,0.00024716,2]
[346028002,1734636639300,-150.0,0.00024716,2]
[346028003,1734636639309,-1100.0,0.00024716,2]
[346028004,1734636639318,-150.0,0.00024723,4]
[346028005,1734636639327,-150.0,0.0002476,2]
[346028006,1734636639337,-150.0,0.00024778,4]
[346028007,1734636639346,-500.0,0.00024781,7]
[346028008,1734636639355,-150.0,0.00024789,4]
[346028009,1734636639364,-550.22,0.00024799,4]
[346028010,1734636639373,-184.31937066,0.00024799,4]
[346028013,1734636640549,-315.68062934,0.00024799,4]
[346028014,1734636640559,-391.68937105,0.00024799,4]
[346028015,1734636640570,-108.31062895,0.00024799,4]
[346028016,1734636640579,-500.0,0.00024799,4]
[346028017,1734636640589,-541.01,0.00024799,4]
[346028018,1734636640597,-500.0,0.00024799,4]
[346028019,1734636640607,-996.0,0.00024799,4]
[346028020,1734636640616,-500.0,0.00024799,4]
[346028021,1734636640626,-500.0,0.00024799,4]
[346028022,1734636640635,-255.52876899,0.00024799,4]
[346028023,1734636640644,-500.0,0.00024799,4]
[346028024,1734636640653,-510.18,0.00024799,4]
[346028025,1734636640662,-500.0,0.00024799,4]
[346028026,1734636640671,-224.81,0.00024799,4]
[346028027,1734636640680,-500.0,0.00024799,4]
[346028028,1734636640691,-500.0,0.00024799,4]
[346028029,1734636640700,-500.0,0.00024799,4]
[346028030,1734636640709,-500.0,0.00024799,4]
[346028031,1734636640718,-587.88,0.00024799,4]
[346028032,1734636640728,-500.0,0.00024799,4]
[346028033,1734636640737,-27488.73330852,0.000248,3]
[346028034,1734636640749,-1428.50840388,0.000248,3]
[346028035,1734636640761,-1562.77279828,0.000248,3]
[346028036,1734636640773,-15281.31727771,0.000248,3]
[346028037,1734636640783,-1152.94708505,0.000248,3]
[346028038,1734636640793,-85640.37530668,0.000248,2]
[346028040,1734636640804,-2124.94160717,0.000248,2]
[346028041,1734636640815,-451.5099872,0.000248,2]
[346028042,1734636640825,-5401.2315871,0.000248,2]
[346028043,1734636640835,-2526.73833132,0.000248,2]
[346028044,1734636640846,-366.60359439,0.000248,2]
[346028045,1734636640857,-1916.34500001,0.000248,2]
[346028046,1734636640868,-290.44000003,0.000248,2]
[346028047,1734636640886,-489.4,0.000248,2]
[346028048,1734636640896,-491.2881889,0.000248,2]
[346028049,1734636640907,-775.217336,0.000248,2]
[346028076,1734636643587,-1938.45550524,0.000248,2]
[346028077,1734636643599,-74552.24274399,0.000248,2]
[346028078,1734636643610,-282.07,0.000248,2]
[346028079,1734636643621,-463.59,0.000248,2]
[346028080,1734636643633,-5242.57935271,0.000248,2]
[346028081,1734636643644,-2396.5189944,0.000248,2]
[346028082,1734636643655,-1836.16629,0.000248,2]
[346028083,1734636643666,-679.30499915,0.000248,2]
[346028084,1734636643681,-1128.74761617,0.000248,2]
[346028085,1734636643695,-241350.000005,0.000248,2]
[346028086,1734636643734,-986700.0000004,0.000248,2]
[346028087,1734636643745,-1862.95135799,0.000248,2]
[346028088,1734636643756,-572.4865023,0.000248,2]
[346028089,1734636643806,-46979.90415979,0.000248,2]
[346028090,1734636643817,-445.09715267,0.000248,2]
[346028101,1734636646420,-325.91,0.00024799,4]
[346028102,1734636646432,-174.09,0.00024799,4]
[346028103,1734636646442,-19894.19131613,0.000248,2]
[346028104,1734636646453,-3465.46992,0.000248,2]
[346028105,1734636646494,-4848.3864252,0.000248,2]
[346028106,1734636646570,-1922.0,0.000248,2]
[346028107,1734636646581,-2965.74672106,0.000248,2]
[346028108,1734636646591,-600.0,0.000248,9]
[346028109,1734636646600,-1634.0,0.000248,2]
[346028110,1734636646609,-150.0,0.00024853,2]
[346028111,1734636646618,-150.0,0.00024855,4]
[346028112,1734636646628,-346.21194529,0.00024899,2]
[346028113,1734636646637,-346.21194527,0.00024899,2]
[346028114,1734636646645,-346.21194527,0.00024899,2]
[346028115,1734636646655,-346.21194527,0.00024899,2]
[346028116,1734636646664,-346.21194527,0.00024899,2]
[346028117,1734636646674,-346.21194527,0.000249,2]
[346028118,1734636646683,-346.21194527,0.000249,2]
[346028119,1734636646692,-7014.646,0.000249,2]
[346028120,1734636646702,-346.21194527,0.000249,2]
[346028121,1734636646711,-346.21194527,0.000249,2]
[346028122,1734636646721,-531.49,0.000249,31]
[346028123,1734636646730,-531.49,0.000249,31]
[346028124,1734636646740,-531.49,0.000249,31]
[346028125,1734636646749,-346.21194527,0.000249,2]
[346028126,1734636646758,-7266.5000002,0.000249,3]
[346028127,1734636646767,-11623.42138046,0.000249,3]
[346028128,1734636646783,-6650.37861932,0.000249,3]
[346028129,1734636646793,-150.0,0.00024921,4]
[346028130,1734636646803,-2401.87658065,0.00024979,24]
[346028131,1734636646812,-273.17459424,0.00024986,4]
[346028132,1734636646821,-150.0,0.00024986,4]
[346028133,1734636646831,-150.0,0.00024986,4]
[346028134,1734636646840,-150.0,0.00024986,4]
[346028135,1734636646849,-150.0,0.00024987,120]
[346028136,1734636646859,-1100.0,0.00024998,5]
[346028137,1734636646869,-10127.59900579,0.00024998,3]
[346028138,1734636646888,-507.84944349,0.00024998,3]
[346028139,1734636646897,-2401.0,0.00024999,30]
[346028140,1734636646906,-500.0,0.00024999,4]
[346028141,1734636646916,-226.34862632,0.00024999,4]
[346028142,1734636646925,-500.0,0.00024999,4]
[346028143,1734636646939,-500.0,0.00024999,4]
[346028144,1734636646950,-500.0,0.00024999,4]
[346028145,1734636646959,-617.69,0.00024999,4]
[346028146,1734636646970,-500.0,0.00024999,4]
[346028147,1734636646979,-244.04929432,0.00024999,4]
[346028148,1734636646989,-500.0,0.00024999,4]
[346028149,1734636646998,-500.0,0.00024999,4]
[346028150,1734636647010,-500.0,0.00024999,4]
[346028151,1734636647019,-534.85005813,0.00024999,4]
[346028152,1734636647028,-500.0,0.00024999,4]
[346028153,1734636647037,-500.0,0.00024999,4]
[346028154,1734636647046,-500.0,0.00024999,4]
[346028155,1734636647056,-500.0,0.00024999,4]
[346028156,1734636647066,-500.0,0.00024999,4]
[346028157,1734636647075,-500.0,0.00024999,4]
[346028158,1734636647084,-500.0,0.00024999,4]
[346028159,1734636647094,-500.0,0.00024999,4]
[346028160,1734636647103,-500.0,0.00024999,4]
[346028161,1734636647112,-500.0,0.00024999,4]
[346028162,1734636647122,-500.0,0.00024999,4]
[346028163,1734636647131,-500.0,0.00024999,4]
[346028165,1734636647141,-607.87,0.00024999,4]
[346028166,1734636647150,-500.0,0.00024999,4]
[346028168,1734636647159,-210.53089509,0.00024999,4]
[346028170,1734636647168,-500.0,0.00024999,4]
[346028171,1734636647178,-500.0,0.00024999,4]
[346028172,1734636647187,-500.0,0.00024999,4]
[346028173,1734636647199,-500.0,0.00024999,4]
[346028174,1734636647209,-500.0,0.00024999,4]
[346028175,1734636647218,-500.0,0.00024999,4]
[346028176,1734636647228,-500.0,0.00024999,4]
[346028177,1734636647237,-500.0,0.00024999,4]
[346028178,1734636647246,-500.0,0.00024999,4]
[346028179,1734636647256,-500.0,0.00024999,4]
[346028180,1734636647265,-500.0,0.00024999,4]
[346028181,1734636647275,-570.1,0.00024999,4]
[346028182,1734636647284,-551.1,0.00024999,4]
[346028183,1734636647295,-364.98913552,0.00024999,4]
[346028184,1734636647303,-500.0,0.00024999,4]
[346028185,1734636647313,-500.0,0.00024999,4]
[346028186,1734636647322,-500.0,0.00024999,4]
[346028187,1734636647331,-500.0,0.00024999,4]
[346028188,1734636647342,-500.0,0.00024999,4]
[346028189,1734636647351,-500.0,0.00024999,4]
[346028190,1734636647360,-500.0,0.00024999,4]
[346028191,1734636647369,-581.44,0.00024999,4]
[346028192,1734636647379,-500.0,0.00024999,4]
[346028193,1734636647388,-562.66,0.00024999,4]
[346028194,1734636647398,-500.0,0.00024999,4]
[346028195,1734636647408,-500.0,0.00024999,4]
[346028196,1734636647419,-500.0,0.00024999,4]
[346028197,1734636647428,-500.0,0.00024999,4]
[346028198,1734636647438,-500.0,0.00024999,4]
[346028199,1734636647450,-500.0,0.00024999,4]
[346028200,1734636647459,-500.0,0.00024999,4]
[346028201,1734636647469,-500.0,0.00024999,4]
[346028202,1734636647479,-500.0,0.00024999,4]
[346028203,1734636647488,-176.82193626,0.00024999,4]
[346028204,1734636647498,-200.0,0.00024999,4]
[346028205,1734636647508,-500.0,0.00024999,2]
[346028206,1734636647518,-500.0,0.00024999,4]
[346028207,1734636647527,-500.0,0.00024999,4]
[346028208,1734636647536,-500.0,0.00024999,4]
[346028209,1734636647545,-529.52355828,0.00024999,4]
[346028210,1734636647555,-513.5,0.00024999,4]
[346028211,1734636647565,-345.62234201,0.00024999,4]
[346028212,1734636647574,-500.0,0.00024999,2]
[346028213,1734636647584,-500.0,0.00024999,4]
[346028214,1734636647593,-241.55958509,0.00024999,4]